fUSD/lending_fUSD_20240712
["ID","MTS","AMOUNT","RATE_DAILY","PERIOD"]
[331745453,1720744260295,-500.0,0.00013998,2]
[331745454,1720744260304,-514.0,0.00013999,2]
[331745455,1720744260314,-261.90875999,0.00013999,2]
[331745456,1720744260323,-151.0,0.00013999,2]
[331745457,1720744260333,-151.0,0.00013999,2]
[331745458,1720744260342,-151.0,0.00013999,2]
[331745459,1720744260351,-151.0,0.00013999,2]
[331745460,1720744260363,-151.0,0.00013999,2]
[331745461,1720744260372,-151.0,0.00013999,2]
[331745462,1720744260381,-151.0,0.00013999,2]
[331745463,1720744260390,-502.57299624,0.00013999,2]
[331745464,1720744260399,-504.73735286,0.00013999,2]
[331745465,1720744260409,-502.31267672,0.00013999,2]
[331745466,1720744260418,-617.78993056,0.00013999,2]
[331745467,1720744260427,-500.0,0.00013999,2]
[331745468,1720744260436,-501.50402394,0.00013999,2]
[331745469,1720744260445,-522.42174094,0.00013999,2]
[331745470,1720744260454,-500.51392867,0.00013999,2]
[331745471,1720744260463,-501.25083921,0.00013999,2]
[331745472,1720744260472,-5045.29951403,0.00013999,2]
[331745473,1720744260481,-500.0,0.00013999,2]
[331745474,1720744260491,-500.0,0.00013999,2]
[331745475,1720744260500,-500.0,0.00013999,2]
[331745476,1720744260509,-501.76138065,0.00013999,2]
[331745477,1720744260518,-500.0,0.00013999,2]
[331745478,1720744260527,-500.0,0.00013999,2]
[331745479,1720744260537,-500.0,0.00013999,2]
[331745480,1720744260546,-500.0,0.00013999,2]
[331745481,1720744260555,-500.0,0.00013999,2]
[331745482,1720744260565,-500.0,0.00013999,2]
[331745483,1720744260574,-500.0,0.00013999,2]
[331745484,1720744260583,-505.36371854,0.00013999,2]
[331745485,1720744260592,-500.0,0.00013999,2]
[331745486,1720744260602,-500.0,0.00013999,2]
[331745487,1720744260612,-503.12026825,0.00013999,2]
[331745488,1720744260622,-500.0,0.00013999,2]
[331745489,1720744260631,-501.68229182,0.00013999,2]
[331745490,1720744260640,-500.0,0.00013999,2]
[331745491,1720744260652,-590.42594547,0.00013999,2]
[331745492,1720744260663,-508.35947388,0.00013999,2]
[331745493,1720744260672,-596.43445245,0.00013999,2]
[331745494,1720744260681,-500.0,0.00013999,2]
[331745495,1720744260690,-500.0,0.00013999,2]
[331745496,1720744260699,-500.0,0.00013999,2]
[331745497,1720744260708,-500.0,0.00013999,2]
[331745498,1720744260717,-1242.92,0.00013999,2]
[331745499,1720744260727,-544.14133215,0.00013999,2]
[331745500,1720744260736,-497.17118747,0.00013999,2]
[331745501,1720744260745,-500.0,0.00013999,2]
[331745502,1720744260755,-501.89769908,0.00013999,2]
[331745503,1720744260766,-500.28193791,0.00013999,2]
[331745504,1720744260777,-554.43219447,0.00013999,2]
[331745505,1720744260787,-502.12698678,0.00013999,2]
[331745506,1720744260796,-500.0,0.00013999,2]
[331745507,1720744260806,-539.3945509,0.00013999,2]
[331745508,1720744260816,-500.0,0.00013999,2]
[331745509,1720744260825,-500.0,0.00013999,2]
[331745510,1720744260833,-502.53405417,0.00013999,2]
[331745511,1720744260843,-500.0,0.00013999,2]
[331745512,1720744260852,-500.0,0.00013999,2]
[331745513,1720744260863,-500.0,0.00013999,2]
[331745514,1720744260872,-500.86584973,0.00013999,2]
[331745515,1720744260881,-500.0,0.00013999,2]
[331745516,1720744260890,-500.0,0.00013999,2]
[331745517,1720744260899,-503.35068096,0.00013999,2]
[331745518,1720744260907,-500.0,0.00013999,2]
[331745519,1720744260916,-503.32622075,0.00013999,2]
[331745520,1720744260926,-500.0,0.00013999,2]
[331745521,1720744260935,-500.0,0.00013999,2]
[331745522,1720744260944,-501.33717726,0.00013999,2]
[331745523,1720744260953,-150.39107522,0.00013999,2]
[331745524,1720744260962,-541.67765467,0.00013999,2]
[331745525,1720744260971,-622.64885043,0.00013999,2]
[331745526,1720744260980,-603.54357845,0.00013999,2]
[331745527,1720744260989,-500.0,0.00013999,2]
[331745528,1720744260998,-500.0,0.00013999,2]
[331745529,1720744261007,-501.96610782,0.00013999,2]
[331745530,1720744261016,-502.86946334,0.00013999,2]
[331745531,1720744261025,-500.0,0.00013999,2]
[331745532,1720744261034,-500.0,0.00013999,2]
[331745533,1720744261044,-500.0,0.00013999,2]
[331745534,1720744261053,-500.0,0.00013999,2]
[331745535,1720744261062,-500.0,0.00013999,2]
[331745536,1720744261072,-631.56829948,0.00013999,2]
[331745537,1720744261081,-545.17739743,0.00013999,2]
[331745538,1720744261090,-521.2428613,0.00013999,2]
[331745539,1720744261099,-501.62243907,0.00013999,2]
[331745540,1720744261108,-500.0,0.00013999,2]
[331745541,1720744261122,-500.0,0.00013999,2]
[331745542,1720744261131,-502.13843977,0.00013999,2]
[331745543,1720744261140,-500.0,0.00013999,2]
[331745544,1720744261149,-500.0,0.00013999,2]
[331745545,1720744261158,-500.0,0.00013999,2]
[331745546,1720744261166,-500.0,0.00013999,2]
[331745547,1720744261175,-500.0,0.00013999,2]
[331745548,1720744261185,-500.60534797,0.00013999,2]
[331745549,1720744261195,-501.38001738,0.00013999,2]
[331745550,1720744261203,-500.0,0.00013999,2]
[331745551,1720744261212,-500.0,0.00013999,2]
[331745552,1720744261221,-503.1470512,0.00013999,2]
[331745553,1720744261230,-638.74,0.00013999,2]
[331745554,1720744261239,-500.0,0.00013999,2]
[331745555,1720744261248,-546.13954274,0.00013999,2]
[331745556,1720744261257,-500.0,0.00013999,2]
[331745557,1720744261266,-583.96339745,0.00013999,2]
[331745558,1720744261280,-500.0,0.00013999,2]
[331745559,1720744261293,-500.0,0.00013999,2]
[331745560,1720744261306,-500.0,0.00013999,2]
[331745561,1720744261316,-500.0,0.00013999,2]
[331745562,1720744261330,-500.0,0.00013999,2]
[331745563,1720744261343,-500.4495867,0.00013999,2]
[331745564,1720744261357,-500.0,0.00013999,2]
[331745565,1720744261375,-500.22022409,0.00013999,2]
[331745566,1720744261390,-500.0,0.00013999,2]
[331745567,1720744261403,-503.04779587,0.00013999,2]
[331745568,1720744261415,-500.0,0.00013999,2]
[331745569,1720744261430,-500.0,0.00013999,2]
[331745570,1720744261443,-502.45827514,0.00013999,2]
[331745571,1720744261453,-500.0,0.00013999,2]
[331745572,1720744261466,-503.51289337,0.00013999,2]
[331745573,1720744261479,-500.0,0.00013999,2]
[331745574,1720744261492,-500.0,0.00013999,2]
[331745575,1720744261506,-500.0,0.00013999,2]
[331745576,1720744261521,-500.0,0.00013999,2]
[331745577,1720744261534,-501.50039054,0.00013999,2]
[331745578,1720744261545,-502.56907276,0.00013999,2]
[331745579,1720744261556,-501.98564968,0.00013999,2]
[331745580,1720744261570,-500.0,0.00013999,2]
[331745581,1720744261584,-500.0,0.00013999,2]
[331745582,1720744261595,-500.0,0.00013999,2]
[331745583,1720744261608,-500.0,0.00013999,2]
[331745584,1720744261624,-500.0,0.00013999,2]
[331745585,1720744261636,-500.0,0.00013999,2]
[331745586,1720744261647,-500.0,0.00013999,2]
[331745587,1720744261660,-500.0,0.00013999,2]
[331745588,1720744261671,-500.0,0.00013999,2]
[331745589,1720744261683,-500.0,0.00013999,2]
[331745590,1720744261694,-633.53,0.00013999,2]
[331745591,1720744261706,-506.82143951,0.00013999,2]
[331745592,1720744261718,-500.0,0.00013999,2]
[331745593,1720744261729,-500.0,0.00013999,2]
[331745594,1720744261740,-500.59695047,0.00013999,2]
[331745595,1720744261751,-500.0,0.00013999,2]
[331745596,1720744261762,-500.0,0.00013999,2]
[331745597,1720744261774,-550.2198074,0.00013999,2]
[331745598,1720744261786,-547.16871202,0.00013999,2]
[331745599,1720744261796,-500.0,0.00013999,2]
[331745600,1720744261807,-500.0,0.00013999,2]
[331745601,1720744261819,-502.14972972,0.00013999,2]
[331745602,1720744261830,-500.0,0.00013999,2]
[331745603,1720744261843,-500.0,0.00013999,2]
[331745604,1720744261855,-500.0,0.00013999,2]
[331745605,1720744261872,-500.0,0.00013999,2]
[331745606,1720744261883,-500.99836938,0.00013999,2]
[331745607,1720744261894,-500.0,0.00013999,2]
[331745608,1720744261906,-500.0,0.00013999,2]
[331745609,1720744261917,-522.83879469,0.00013999,2]
[331745610,1720744261928,-500.0,0.00013999,2]
[331745611,1720744261939,-500.0,0.00013999,2]
[331745612,1720744261952,-500.0,0.00013999,2]
[331745613,1720744261964,-501.57004489,0.00013999,2]
[331745614,1720744261975,-500.5243979,0.00013999,2]
[331745615,1720744261987,-500.0,0.00013999,2]
[331745616,1720744261999,-500.0,0.00013999,2]
[331745617,1720744262011,-500.0,0.00013999,2]
[331745618,1720744262022,-500.0,0.00013999,2]
[331745619,1720744262033,-500.0,0.00013999,2]
[331745620,1720744262044,-501.18015357,0.00013999,2]
[331745621,1720744262055,-502.56318944,0.00013999,2]
[331745622,1720744262066,-500.0,0.00013999,2]
[331745623,1720744262078,-500.0,0.00013999,2]
[331745624,1720744262089,-543.97717495,0.00013999,2]
[331745625,1720744262100,-500.53720795,0.00013999,2]
[331745626,1720744262111,-557.61030593,0.00013999,2]
[331745627,1720744262124,-500.71404625,0.00013999,2]
[331745628,1720744262135,-501.17630102,0.00013999,2]
[331745629,1720744262146,-500.0,0.00013999,2]
[331745630,1720744262157,-500.0,0.00013999,2]
[331745631,1720744262169,-609.80944206,0.00013999,2]
[331745632,1720744262180,-506.09070419,0.00013999,2]
[331745633,1720744262192,-500.0,0.00013999,2]
[331745634,1720744262203,-500.0,0.00013999,2]
[331745635,1720744262215,-150.0,0.00013999,2]
[331745636,1720744262227,-500.0,0.00013999,2]
[331745637,1720744262238,-500.0,0.00013999,2]
[331745638,1720744262249,-529.61093743,0.00013999,2]
[331745639,1720744262260,-500.23048453,0.00013999,2]
[331745640,1720744262271,-500.0,0.00013999,2]
[331745641,1720744262282,-500.218626,0.00013999,2]
[331745642,1720744262293,-500.0,0.00013999,2]
[331745643,1720744262304,-628.8,0.00013999,2]
[331745644,1720744262315,-500.0,0.00013999,2]
[331745645,1720744262328,-500.0,0.00013999,2]
[331745646,1720744262339,-530.18339063,0.00013999,2]
[331745647,1720744262351,-500.0,0.00013999,2]
[331745648,1720744262362,-500.0,0.00013999,2]
[331745649,1720744262377,-549.58,0.00013999,2]
[331745650,1720744262389,-500.0,0.00013999,2]
[331745651,1720744262400,-587.96504393,0.00013999,2]
[331745652,1720744262410,-500.0,0.00013999,2]
[331745653,1720744262421,-500.0,0.00013999,2]
[331745654,1720744262433,-500.0,0.00013999,2]
[331745655,1720744262444,-500.61241236,0.00013999,2]
[331745656,1720744262456,-500.0,0.00013999,2]
[331745657,1720744262467,-501.73937012,0.00013999,2]
[331745658,1720744262478,-500.0,0.00013999,2]
[331745659,1720744262491,-523.01143017,0.00013999,2]
[331745660,1720744262502,-500.0,0.00013999,2]
[331745661,1720744262513,-501.41813266,0.00013999,2]
[331745662,1720744262524,-500.0,0.00013999,2]
[331745663,1720744262696,-500.59749813,0.00013999,2]
[331745664,1720744262706,-504.26410998,0.00013999,2]
[331745665,1720744262715,-500.0,0.00013999,2]
[331745666,1720744262726,-500.0,0.00013999,2]
[331745667,1720744262737,-500.0,0.00013999,2]
[331745668,1720744262747,-500.58247783,0.00013999,2]
[331745669,1720744262756,-502.49024195,0.00013999,2]
[331745670,1720744262769,-500.0,0.00013999,2]
[331745671,1720744262787,-506.10011076,0.00013999,2]
[331745672,1720744262796,-502.77326364,0.00013999,2]
[331745673,1720744262805,-501.90836363,0.00013999,2]
[331745674,1720744262814,-500.11249027,0.00013999,2]
[331745675,1720744262825,-522.32305877,0.00013999,2]
[331745676,1720744262834,-500.0,0.00013999,2]
[331745677,1720744262843,-500.39976745,0.00013999,2]
[331745678,1720744262854,-500.0,0.00013999,2]
[331745679,1720744262872,-500.0,0.00013999,2]
[331745680,1720744262881,-197.86360112,0.00013999,2]
[331745681,1720744262891,-500.94680435,0.00013999,2]
[331745682,1720744262900,-501.24683211,0.00013999,2]
[331745683,1720744262909,-501.73319643,0.00013999,2]
[331745684,1720744262919,-383.09533216,0.00013999,2]
[331745685,1720744262929,-605.65971691,0.00013999,2]
[331745686,1720744262938,-500.0,0.00013999,2]
[331745687,1720744262947,-500.0,0.00013999,2]
[331745688,1720744262956,-500.0,0.00013999,2]
[331745689,1720744262965,-522.7576726,0.00013999,2]
[331745690,1720744262975,-500.0,0.00013999,2]
[331745691,1720744262985,-501.07926247,0.00013999,2]
[331745692,1720744262995,-503.41101849,0.00013999,2]
[331745693,1720744263005,-500.37227739,0.00013999,2]
[331745694,1720744263015,-500.0,0.00013999,2]
[331745695,1720744263024,-500.0,0.00013999,2]
[331745696,1720744263034,-501.55025225,0.00013999,2]
[331745697,1720744263043,-500.0,0.00013999,2]
[331745698,1720744263053,-500.25165476,0.00013999,2]
[331745699,1720744263062,-500.0,0.00013999,2]
[331745700,1720744263071,-503.7312466,0.00013999,2]
[331745701,1720744263080,-501.49178138,0.00013999,2]
[331745702,1720744263090,-500.0,0.00013999,2]
[331745703,1720744263099,-502.12853747,0.00013999,2]
[331745704,1720744263109,-479.47925054,0.00013999,2]
[331745705,1720744263122,-522.60811347,0.00013999,2]
[331745706,1720744263131,-519.01531631,0.00013999,2]
[331745707,1720744263141,-500.0,0.00013999,2]
[331745708,1720744263150,-506.63372749,0.00013999,2]
[331745709,1720744263160,-502.0765213,0.00013999,2]
[331745710,1720744263169,-500.80781336,0.00013999,2]
[331745711,1720744263179,-500.0,0.00013999,2]
[331745712,1720744263189,-500.0,0.00013999,2]
[331745713,1720744263198,-500.0,0.00013999,2]
[331745714,1720744263208,-514.62867965,0.00013999,2]
[331745715,1720744263217,-500.0,0.00013999,2]
[331745716,1720744263227,-500.0,0.00013999,2]
[331745717,1720744263236,-159.933631,0.00013999,2]
[331745718,1720744263245,-500.0,0.00013999,2]
[331745719,1720744263255,-502.69244548,0.00013999,2]
[331745720,1720744263264,-500.0,0.00013999,2]
[331745721,1720744263274,-500.0,0.00013999,2]
[331745722,1720744263283,-501.22814141,0.00013999,2]
[331745723,1720744263293,-500.0,0.00013999,2]
[331745724,1720744263302,-503.53968055,0.00013999,2]
[331745725,1720744263312,-500.0,0.00013999,2]
[331745726,1720744263321,-500.17262643,0.00013999,2]
[331745727,1720744263331,-500.0,0.00013999,2]
[331745728,1720744263341,-631.36324153,0.00013999,2]
[331745729,1720744263351,-500.0,0.00013999,2]
[331745730,1720744263361,-502.16739727,0.00013999,2]
[331745731,1720744263373,-572.60869459,0.00013999,2]
[331745732,1720744263382,-500.0,0.00013999,2]
[331745733,1720744263391,-500.0,0.00013999,2]
[331745734,1720744263401,-636.91152697,0.00013999,2]
[331745735,1720744263410,-645.39213053,0.00013999,2]
[331745736,1720744263420,-500.75332733,0.00013999,2]
[331745737,1720744263429,-500.0,0.00013999,2]
[331745738,1720744263438,-541.70312234,0.00013999,2]
[331745739,1720744263447,-500.0,0.00013999,2]
[331745740,1720744263463,-500.0,0.00013999,2]
[331745741,1720744263472,-500.38621274,0.00013999,2]
[331745742,1720744263481,-500.0,0.00013999,2]
[331745743,1720744263490,-500.0,0.00013999,2]
[331745744,1720744263500,-500.0,0.00013999,2]
[331745745,1720744263509,-500.0,0.00013999,2]
[331745746,1720744263519,-504.13109325,0.00013999,2]
[331745747,1720744263528,-500.0,0.00013999,2]
[331745748,1720744263538,-500.0,0.00013999,2]
[331745749,1720744263547,-500.0,0.00013999,2]
[331745750,1720744263557,-593.19919446,0.00013999,2]
[331745751,1720744263566,-500.0,0.00013999,2]
[331745752,1720744263575,-500.0,0.00013999,2]
[331745753,1720744263584,-500.0,0.00013999,2]
[331745754,1720744263594,-501.08230746,0.00013999,2]
[331745755,1720744263603,-501.62422551,0.00013999,2]
[331745756,1720744263612,-500.0,0.00013999,2]
[331745757,1720744263625,-508.1838725,0.00013999,2]
[331745758,1720744263634,-500.0,0.00013999,2]
[331745759,1720744263644,-500.0,0.00013999,2]
[331745760,1720744263653,-503.08541998,0.00013999,2]
[331745761,1720744263662,-500.88183405,0.00013999,2]
[331745762,1720744263671,-500.0,0.00013999,2]
[331745763,1720744263681,-206.34113843,0.00013999,2]
[331745764,1720744263690,-500.0,0.00013999,2]
[331745765,1720744263699,-500.0,0.00013999,2]
[331745766,1720744263709,-500.0,0.00013999,2]
[331745767,1720744263718,-503.61076234,0.00013999,2]
[331745768,1720744263727,-500.17351514,0.00013999,2]
[331745769,1720744263736,-374.68391508,0.00013999,2]
[331745770,1720744263746,-500.0,0.00013999,2]
[331745771,1720744263756,-500.0,0.00013999,2]
[331745772,1720744263766,-500.24543579,0.00013999,2]
[331745773,1720744263779,-501.95052905,0.00013999,2]
[331745774,1720744263788,-577.6260784,0.00013999,2]
[331745775,1720744263797,-500.0,0.00013999,2]
[331745776,1720744263806,-500.0,0.00013999,2]
[331745777,1720744263818,-500.91896454,0.00013999,2]
[331745778,1720744263828,-500.0,0.00013999,2]
[331745779,1720744263837,-500.0,0.00013999,2]
[331745780,1720744263848,-500.15652813,0.00013999,2]
[331745781,1720744263857,-501.62708631,0.00013999,2]
[331745782,1720744263871,-500.51483095,0.00013999,2]
[331745783,1720744263880,-500.28423931,0.00013999,2]
[331745784,1720744263889,-500.0,0.00013999,2]
[331745785,1720744263899,-500.0,0.00013999,2]
[331745786,1720744263908,-500.0,0.00013999,2]
[331745787,1720744263918,-500.0,0.00013999,2]
[331745788,1720744263927,-500.0,0.00013999,2]
[331745789,1720744263937,-500.0,0.00013999,2]
[331745790,1720744263947,-500.0,0.00013999,2]
[331745791,1720744263956,-500.63413421,0.00013999,2]
[331745792,1720744263966,-500.0,0.00013999,2]
[331745793,1720744263976,-500.0,0.00013999,2]
[331745794,1720744263986,-501.33789247,0.00013999,2]
[331745795,1720744263996,-532.89067703,0.00013999,2]
[331745796,1720744264005,-502.14831764,0.00013999,2]
[331745797,1720744264015,-500.0,0.00013999,2]
[331745798,1720744264025,-500.9196983,0.00013999,2]
[331745799,1720744264035,-500.92487302,0.00013999,2]
[331745800,1720744264044,-500.17815157,0.00013999,2]
[331745801,1720744264053,-500.0,0.00013999,2]
[331745802,1720744264062,-500.0,0.00013999,2]
[331745803,1720744264072,-501.07479405,0.00013999,2]
[331745804,1720744264082,-502.41170537,0.00013999,2]
[331745805,1720744264091,-500.0,0.00013999,2]
[331745806,1720744264101,-524.51389848,0.00013999,2]
[331745807,1720744264111,-500.0,0.00013999,2]
[331745808,1720744264124,-594.85240733,0.00013999,2]
[331745809,1720744264134,-500.0,0.00013999,2]
[331745810,1720744264144,-500.0,0.00013999,2]
[331745811,1720744264153,-504.67348472,0.00013999,2]
[331745812,1720744264162,-500.35346088,0.00013999,2]
[331745813,1720744264172,-500.33889671,0.00013999,2]
[331745814,1720744264181,-500.0,0.00013999,2]
[331745815,1720744264191,-500.93209019,0.00013999,2]
[331745816,1720744264200,-501.5221933,0.00013999,2]
[331745817,1720744264210,-500.0,0.00013999,2]
[331745818,1720744264219,-500.0842722,0.00013999,2]
[331745819,1720744264228,-500.0,0.00013999,2]
[331745820,1720744264238,-501.82709224,0.00013999,2]
[331745821,1720744264247,-506.63300494,0.00013999,2]
[331745822,1720744264256,-500.0,0.00013999,2]
[331745823,1720744264266,-500.0,0.00013999,2]
[331745824,1720744264275,-500.0,0.00013999,2]
[331745825,1720744264284,-601.6110727,0.00013999,2]
[331745826,1720744264293,-501.8234367,0.00013999,2]
[331745827,1720744264302,-500.0,0.00013999,2]
[331745828,1720744264312,-500.64296712,0.00013999,2]
[331745829,1720744264321,-500.0,0.00013999,2]
[331745830,1720744264330,-500.0,0.00013999,2]
[331745831,1720744264339,-552.12676005,0.00013999,2]
[331745832,1720744264348,-500.0,0.00013999,2]
[331745833,1720744264357,-500.0,0.00013999,2]
[331745834,1720744264370,-500.0,0.00013999,2]
[331745835,1720744264379,-500.0,0.00013999,2]
[331745836,1720744264388,-500.0,0.00013999,2]
[331745837,1720744264397,-500.0,0.00013999,2]
[331745838,1720744264407,-500.0,0.00013999,2]
[331745839,1720744264417,-502.67154073,0.00013999,2]
[331745840,1720744264426,-500.0,0.00013999,2]
[331745841,1720744264435,-501.00082996,0.00013999,2]
[331745842,1720744264444,-500.0,0.00013999,2]
[331745843,1720744264454,-500.0,0.00013999,2]
[331745844,1720744264463,-500.43409694,0.00013999,2]
[331745845,1720744264473,-500.0,0.00013999,2]
[331745846,1720744264482,-500.0,0.00013999,2]
[331745847,1720744264492,-502.93245375,0.00013999,2]
[331745848,1720744264501,-500.0,0.00013999,2]
[331745849,1720744264510,-500.0,0.00013999,2]
[331745850,1720744264520,-501.05097048,0.00013999,2]
[331745851,1720744264530,-500.0,0.00013999,2]
[331745852,1720744264538,-501.37735029,0.00013999,2]
[331745853,1720744264548,-502.81584967,0.00013999,2]
[331745854,1720744264558,-551.11098359,0.00013999,2]
[331745855,1720744264567,-500.0,0.00013999,2]
[331745856,1720744264577,-500.23255911,0.00013999,2]
[331745857,1720744264587,-508.55044605,0.00013999,2]
[331745858,1720744264596,-500.0,0.00013999,2]
[331745859,1720744264606,-501.76387546,0.00013999,2]
[331745860,1720744264617,-500.0,0.00013999,2]
[331745861,1720744264626,-500.0,0.00013999,2]
[331745862,1720744264635,-500.0,0.00013999,2]
[331745863,1720744264645,-502.41912062,0.00013999,2]
[331745864,1720744264655,-501.99776889,0.00013999,2]
[331745865,1720744264664,-501.85458017,0.00013999,2]
[331745866,1720744264673,-500.56276135,0.00013999,2]
[331745867,1720744264682,-502.2113999,0.00013999,2]
[331745868,1720744264691,-501.11110496,0.00013999,2]
[331745869,1720744264700,-596.76522931,0.00013999,2]
[331745870,1720744264710,-500.0,0.00013999,2]
[331745871,1720744264719,-500.12628515,0.00013999,2]
[331745872,1720744264729,-500.24210729,0.00013999,2]
[331745873,1720744264738,-593.60542372,0.00013999,2]
[331745874,1720744264748,-500.0,0.00013999,2]
[331745875,1720744264757,-500.9067676,0.00013999,2]
[331745876,1720744264767,-500.0,0.00013999,2]
[331745877,1720744264778,-500.0,0.00013999,2]
[331745878,1720744264789,-500.0,0.00013999,2]
[331745879,1720744264798,-502.05496572,0.00013999,2]
[331745880,1720744264808,-500.0,0.00013999,2]
[331745881,1720744264818,-502.8555306,0.00013999,2]
[331745882,1720744264827,-500.0,0.00013999,2]
[331745883,1720744264930,-500.0,0.00013999,2]
[331745884,1720744264943,-500.29363781,0.00013999,2]
[331745885,1720744264953,-500.0,0.00013999,2]
[331745886,1720744264963,-500.36551528,0.00013999,2]
[331745887,1720744264973,-500.0,0.00013999,2]
[331745888,1720744264983,-500.0,0.00013999,2]
[331745889,1720744264993,-500.77456033,0.00013999,2]
[331745890,1720744265004,-500.0,0.00013999,2]
[331745891,1720744265015,-500.0,0.00013999,2]
[331745892,1720744265025,-500.0,0.00013999,2]
[331745893,1720744265034,-500.0,0.00013999,2]
[331745894,1720744265044,-500.0,0.00013999,2]
[331745895,1720744265055,-500.0,0.00013999,2]
[331745896,1720744265065,-500.0,0.00013999,2]
[331745897,1720744265075,-500.0,0.00013999,2]
[331745898,1720744265085,-500.96830516,0.00013999,2]
[331745899,1720744265094,-500.0,0.00013999,2]
[331745900,1720744265104,-500.0,0.00013999,2]
[331745901,1720744265114,-500.0,0.00013999,2]
[331745902,1720744265129,-500.0,0.00013999,2]
[331745903,1720744265139,-500.0,0.00013999,2]
[331745904,1720744265149,-500.0,0.00013999,2]
[331745905,1720744265159,-500.0,0.00013999,2]
[331745906,1720744265169,-500.0,0.00013999,2]
[331745907,1720744265179,-500.0,0.00013999,2]
[331745908,1720744265188,-500.0,0.00013999,2]
[331745909,1720744265198,-500.0,0.00013999,2]
[331745910,1720744265208,-500.0,0.00013999,2]
[331745911,1720744265217,-325.79184894,0.00013999,2]
[331745912,1720744265227,-500.64982421,0.00013999,2]
[331745913,1720744265237,-500.0,0.00013999,2]
[331745914,1720744265246,-500.49572202,0.00013999,2]
[331745915,1720744265256,-500.0,0.00013999,2]
[331745916,1720744265265,-502.24817301,0.00013999,2]
[331745917,1720744265275,-501.20281157,0.00013999,2]
[331745918,1720744265285,-500.0,0.00013999,2]
[331745919,1720744265294,-501.60964496,0.00013999,2]
[331745920,1720744265304,-453.01854153,0.00013999,2]
[331745921,1720744265314,-184.13309361,0.00013999,2]
[331745922,1720744265324,-500.62268866,0.00013999,2]
[331745923,1720744265333,-500.98285485,0.00013999,2]
[331745924,1720744265343,-500.0,0.00013999,2]
[331745925,1720744265353,-500.0,0.00013999,2]
[331745926,1720744265363,-560.48087129,0.00013999,2]
[331745927,1720744265378,-501.05940527,0.00013999,2]
[331745928,1720744265388,-526.01218543,0.00013999,2]
[331745929,1720744265397,-500.0,0.00013999,2]
[331745930,1720744265406,-500.0,0.00013999,2]
[331745931,1720744265415,-640.1632992,0.00013999,2]
[331745932,1720744265424,-478.03,0.00013999,2]
[331745933,1720744265434,-500.0,0.00013999,2]
[331745934,1720744265443,-500.82463719,0.00013999,2]
[331745935,1720744265453,-500.0,0.00013999,2]
[331745936,1720744265462,-500.0,0.00013999,2]
[331745937,1720744265472,-500.91999389,0.00013999,2]
[331745938,1720744265481,-500.0,0.00013999,2]
[331745939,1720744265490,-502.13182821,0.00013999,2]
[331745940,1720744265499,-500.0,0.00013999,2]
[331745941,1720744265509,-365.87,0.00013999,2]
[331745942,1720744265518,-500.0,0.00013999,2]
[331745943,1720744265528,-170.13929706,0.00013999,2]
[331745944,1720744265538,-500.0,0.00013999,2]
[331745945,1720744265547,-500.24715957,0.00013999,2]
[331745946,1720744265557,-500.0,0.00013999,2]
[331745947,1720744265566,-500.0,0.00013999,2]
[331745948,1720744265575,-320.03465064,0.00013999,2]
[331745949,1720744265585,-505.99186663,0.00013999,2]
[331745950,1720744265595,-500.0,0.00013999,2]
[331745951,1720744265604,-500.10039975,0.00013999,2]
[331745952,1720744265613,-500.0,0.00013999,2]